[Event "SVK Extraliga 2019-20"]
[Site "Slovakia"]
[Date "2019.11.24"]
[Round "4.8"]
[White "Gazik, Igor"]
[Black "Kovacik, Emil"]
[Result "1/2-1/2"]
[ECO "A08"]
[WhiteElo "2253"]
[BlackElo "2124"]
[Annotator "NA"]
[PlyCount "55"]
[EventDate "2019.10.19"]
[EventType "team-tourn"]
[EventCountry "SVK"]
[SourceTitle "playchess.com"]
[Source "ChessBase"]
[SourceQuality "1"]
[WhiteTeam "Podhajska"]
[BlackTeam "Dubnica"]
[TimeControl "40/5400+30:1800+30"]

1. e4 {[%emt 0:00:00]} e6 {[%emt 0:00:00]} 2. d3 {[%emt 0:00:00]} d5 {[%emt 0:00:32]} 3. Nd2 {[%emt 0:00:00]} c5 {[%emt 0:00:21]} 4. Ngf3 {[%emt 0:00:04]} Nc6 {[%emt 0:00:18]} 5. g3 {[%emt 0:15:24]} Nf6 {[%emt 0:00:39]} 6. Bg2 {[%emt 0:00:18]} Be7 {[%emt 0:00:34]} 7. O-O {[%emt 0:00:07]} O-O {[%emt 0:00:21]} 8. Re1 {[%emt 0:02:10]} b5 {[%emt 0:03:56]} 9. e5 {[%emt 0:02:37]} Ne8 {[%emt 0:00:55]} 10. a4 {[%emt 0:03:09]} bxa4 {[%emt 0:04:25]} 11. Rxa4 {[%emt 0:02:02]} Bd7 {[%emt 0:01:21]} 12. Ra1 {[%emt 0:00:24]} Qb6 {[%emt 0:09:19]} 13. Nf1 {[%emt 0:03:07]} Nc7 {[%emt 0:00:51]} 14. c3 {[%emt 0:05:00]} Rab8 {[%emt 0:21:16]} 15. h4 {[%emt 0:04:07]} Kh8 {[%emt 0:08:05]} 16. N1h2 {[%emt 0:11:51]} f5 {[%emt 0:05:40]} 17. exf6 {[%emt 0:10:32]} gxf6 {[%emt 0:00:22]} 18. Ng4 {[%emt 0:08:16]} Nd8 {[%emt 0:02:27]} 19. Ne3 {[%emt 0:02:45]} Nc6 {[%emt 0:06:14]} 20. Nd2 {[%emt 0:02:26]} Rbe8 {[%emt 0:06:56]} 21. f4 {[%emt 0:08:09]} Rg8 {[%emt 0:02:54]} 22. Kh2 {[%emt 0:03:05]} Qb8 {[%emt 0:01:46]} 23. Qf3 {[%emt 0:08:41]} d4 {[%emt 0:02:40]} 24. Nec4 {[%emt 0:01:52]} Nd5 {[%emt 0:01:55]} 25. Ne4 {[%emt 0:02:55]} Nb6 {[%emt 0:07:58]} 26. Ned2 {[%emt 0:01:01]} Nd5 {[%emt 0:00:12]} 27. Ne4 {[%emt 0:00:52]} Nb6 {[%emt 0:00:05]} 28. Ned2 {[%emt 0:00:55]} 1/2-1/2

[Event "SVK Extraliga 2019-20"]
[Site "Slovakia"]
[Date "2019.11.24"]
[Round "4.8"]
[White "Borhy, Marcell"]
[Black "Sobek, Michal"]
[Result "1-0"]
[ECO "E60"]
[WhiteElo "2228"]
[BlackElo "2082"]
[Annotator "NA"]
[PlyCount "94"]
[EventDate "2019.10.19"]
[EventType "team-tourn"]
[EventCountry "SVK"]
[SourceTitle "playchess.com"]
[Source "ChessBase"]
[SourceQuality "1"]
[WhiteTeam "Streda"]
[BlackTeam "Modra"]
[TimeControl "40/5400+30:1800+30"]

1. d4 {[%emt 0:00:00]} Nf6 {[%emt 0:00:00]} 2. c4 {[%emt 0:00:00]} c5 {[%emt 0:00:00]} 3. d5 {[%emt 0:00:01]} b5 {[%emt 0:00:00]} 4. cxb5 {[%emt 0:00:13]} a6 {[%emt 0:00:05]} 5. bxa6 {[%emt 0:00:08]} g6 {[%emt 0:00:09]} 6. Nc3 {[%emt 0:00:08]} Bg7 {[%emt 0:00:07]} 7. Nf3 {[%emt 0:00:17]} O-O {[%emt 0:00:42]} 8. g3 {[%emt 0:00:19]} d6 {[%emt 0:01:14]} 9. Bg2 {[%emt 0:01:01]} Nxa6 {[%emt 0:01:36]} 10. O-O {[%emt 0:01:13]} Qb6 {[%emt 0:02:09]} 11. b3 {[%emt 0:12:55]} Ne4 {[%emt 0:17:02]} 12. Nxe4 {[%emt 0:02:25]} Bxa1 {[%emt 0:00:16]} 13. Bg5 {[%emt 0:00:07]} Bf5 {[%emt 0:10:55]} 14. Bxe7 {[%emt 0:19:05]} Bxe4 {[%emt 0:00:19]} 15. Qxa1 {[%emt 0:02:26]} Nb4 {[%emt 0:01:35]} 16. Bxf8 {[%emt 0:02:25]} Rxf8 {[%emt 0:00:08]} 17. Ng5 {[%emt 0:02:17]} Bxg2 {[%emt 0:05:27]} 18. Kxg2 {[%emt 0:00:12]} Nxd5 {[%emt 0:04:58]} 19. Rd1 {[%emt 0:01:51]} Qc6 {[%emt 0:02:19]} 20. Kg1 {[%emt 0:07:23]} h6 {[%emt 0:06:36]} 21. Ne4 {[%emt 0:01:01]} Re8 {[%emt 0:01:05]} 22. Rxd5 {[%emt 0:12:00]} Rxe4 {[%emt 0:01:23]} 23. Rd2 {[%emt 0:01:33]} d5 {[%emt 0:13:01]} 24. Qc3 {[%emt 0:02:13]} Re8 {[%emt 0:08:50]} 25. Qf3 {[%emt 0:03:04]} Qe6 {[%emt 0:05:10]} 26. Rxd5 {[%emt 0:03:06]} Qxe2 {[%emt 0:00:12]} 27. Kg2 {[%emt 0:00:10]} c4 {[%emt 0:01:43]} 28. Rd7 {[%emt 0:02:42]} Qxf3+ {[%emt 0:00:16]} 29. Kxf3 {[%emt 0:00:02]} Rc8 {[%emt 0:01:51]} 30. bxc4 {[%emt 0:04:45]} Rxc4 {[%emt 0:00:01]} 31. Rd2 {[%emt 0:00:13]} Kg7 {[%emt 0:01:15]} 32. Ke3 {[%emt 0:00:06]} Kf6 {[%emt 0:01:05]} 33. Kd3 {[%emt 0:00:16]} Rc1 {[%emt 0:00:10]} 34. Rc2 {[%emt 0:00:08]} Rb1 {[%emt 0:00:19]} 35. Kc3 {[%emt 0:01:39]} Ke6 {[%emt 0:00:04]} 36. Rd2 {[%emt 0:00:45]} Rb8 {[%emt 0:01:01]} 37. a4 {[%emt 0:00:42]} Rb1 {[%emt 0:01:07]} 38. a5 {[%emt 0:10:18]} Ra1 {[%emt 0:00:22]} 39. Kb4 {[%emt 0:00:06]} Rb1+ {[%emt 0:00:42]} 40. Ka3 {[%emt 0:00:24]} Rb5 {[%emt 0:01:11]} 41. Ka4 {[%emt 0:30:07]} Rb1 {[%emt 0:30:11]} 42. Rd3 {[%emt 0:01:15]} Rb8 {[%emt 0:04:18]} 43. a6 {[%emt 0:02:34]} Ra8 {[%emt 0:00:49]} 44. Ka5 {[%emt 0:00:36]} h5 {[%emt 0:00:26]} 45. Rb3 {[%emt 0:02:29]} Kd6 {[%emt 0:01:24]} 46. Rb7 {[%emt 0:00:16]} f6 {[%emt 0:03:46]} 47. a7 {[%emt 0:01:09]} Kd5 1-0

[Event "SVK Extraliga 2019-20"]
[Site "Slovakia"]
[Date "2019.11.24"]
[Round "4.8"]
[White "Macko, Michal"]
[Black "Petran, Peter"]
[Result "*"]
[ECO "A00"]
[WhiteElo "2175"]
[BlackElo "2271"]
[Annotator "NA"]
[PlyCount "23"]
[EventDate "2019.10.19"]
[EventType "team-tourn"]
[EventCountry "SVK"]
[SourceTitle "playchess.com"]
[Source "ChessBase"]
[SourceQuality "1"]
[WhiteTeam "Liptovska"]
[BlackTeam "Slovan"]
[TimeControl "40/5400+30:1800+30"]

1. g3 {[%emt 0:00:00]} c5 {[%emt 0:00:53]} 2. Bg2 {[%emt 0:00:08]} Nc6 {[%emt 0:00:13]} 3. e4 {[%emt 0:00:15]} g6 {[%emt 0:02:07]} 4. Ne2 {[%emt 0:00:25]} Bg7 {[%emt 0:00:05]} 5. c3 {[%emt 0:00:21]} e6 {[%emt 0:01:30]} 6. O-O {[%emt 0:01:25]} Nge7 {[%emt 0:00:28]} 7. d4 {[%emt 0:00:07]} cxd4 {[%emt 0:00:09]} 8. cxd4 {[%emt 0:00:06]} d5 {[%emt 0:00:07]} 9. e5 {[%emt 0:00:07]} O-O {[%emt 0:01:36]} 10. Nd2 {[%emt 0:00:44]} b6 {[%emt 0:02:33]} 11. Nf3 {[%emt 0:00:09]} Ba6 {[%emt 0:01:31]} 12. Bd2 {[%emt 0:01:57]} *

[Event "SVK Extraliga 2019-20"]
[Site "Slovakia"]
[Date "2019.11.24"]
[Round "4.8"]
[White "Macko, Peter"]
[Black "Kusiak, Matej"]
[Result "0-1"]
[ECO "B11"]
[WhiteElo "2054"]
[BlackElo "2234"]
[Annotator "NA"]
[PlyCount "72"]
[EventDate "2019.10.19"]
[EventType "team-tourn"]
[EventCountry "SVK"]
[SourceTitle "playchess.com"]
[Source "ChessBase"]
[SourceQuality "1"]
[WhiteTeam "Bratislava"]
[BlackTeam "Prakovce"]
[TimeControl "40/5400+30:1800+30"]

1. e4 {[%emt 0:00:00]} c6 {[%emt 0:00:55]} 2. Nc3 {[%emt 0:00:35]} d5 {[%emt 0:00:06]} 3. Nf3 {[%emt 0:00:21]} Bg4 {[%emt 0:00:10]} 4. h3 {[%emt 0:00:22]} Bh5 {[%emt 0:00:04]} 5. exd5 {[%emt 0:17:55]} cxd5 {[%emt 0:00:21]} 6. Bb5+ {[%emt 0:00:22]} Nc6 {[%emt 0:00:20]} 7. g4 {[%emt 0:04:23]} Bg6 $11 {[%emt 0:01:17]} 8. Ne5 {[%emt 0:00:55]} Rc8 {[%emt 0:00:04]} 9. d4 {[%emt 0:15:55]} e6 {[%emt 0:00:05]} 10. h4 {[%emt 0:01:42]} f6 {[%emt 0:00:07]} 11. Nxg6 {[%emt 0:12:55]} hxg6 {[%emt 0:00:05]} 12. Qd3 {[%emt 0:00:27]} Kf7 {[%emt 0:00:41]} 13. Bxc6 {[%emt 0:10:53]} Rxc6 {[%emt 0:00:38]} 14. Bf4 {[%emt 0:01:27]} Bb4 {[%emt 0:01:03]} 15. a3 {[%emt 0:02:24]} Bxc3+ {[%emt 0:01:09]} 16. bxc3 {[%emt 0:00:23]} g5 {[%emt 0:01:25]} 17. Bg3 {[%emt 0:00:37]} Ne7 {[%emt 0:01:53]} 18. Kd2 {[%emt 0:01:33]} gxh4 {[%emt 0:00:13]} 19. Rxh4 {[%emt 0:05:09]} Rxh4 {[%emt 0:00:25]} 20. Bxh4 {[%emt 0:00:04]} Qa5 {[%emt 0:02:46]} 21. f3 {[%emt 0:07:13]} Rc8 {[%emt 0:00:24]} 22. Bg3 {[%emt 0:02:27]} Rh8 {[%emt 0:02:47]} 23. a4 {[%emt 0:01:22]} Rh3 {[%emt 0:00:38]} 24. Bd6 {[%emt 0:00:56]} Nc8 {[%emt 0:01:26]} 25. Bc5 {[%emt 0:04:04]} Qc7 {[%emt 0:01:01]} 26. Rf1 {[%emt 0:02:01]} Qf4+ {[%emt 0:00:41]} 27. Kd1 {[%emt 0:02:02]} Rh2 {[%emt 0:00:36]} 28. a5 {[%emt 0:01:14]} b6 {[%emt 0:01:05]} 29. axb6 {[%emt 0:00:19]} axb6 {[%emt 0:06:20]} 30. Ba3 {[%emt 0:00:07]} Nd6 {[%emt 0:00:29]} 31. Bxd6 {[%emt 0:02:07]} Qxd6 {[%emt 0:00:02]} 32. Re1 {[%emt 0:00:26]} Qa3 {[%emt 0:00:17]} 33. Qe3 {[%emt 0:01:19]} Qa1+ {[%emt 0:00:05]} 34. Qc1 {[%emt 0:00:09]} Qxc3 {[%emt 0:00:05]} 35. Rf1 {[%emt 0:01:37]} Qxd4+ {[%emt 0:00:06]} 36. Ke1 {[%emt 0:00:08]} Qe5+ {[%emt 0:00:06]} 0-1

[Event "SVK Extraliga 2019-20"]
[Site "Slovakia"]
[Date "2019.11.24"]
[Round "4.8"]
[White "Nadzamova, Viktoria"]
[Black "Zvarik, Martin"]
[Result "0-1"]
[ECO "C74"]
[WhiteElo "1975"]
[BlackElo "2314"]
[Annotator "NA"]
[PlyCount "112"]
[EventDate "2019.10.19"]
[EventType "team-tourn"]
[EventCountry "SVK"]
[SourceTitle "playchess.com"]
[Source "ChessBase"]
[SourceQuality "1"]
[WhiteTeam "Košice"]
[BlackTeam "Zilina"]
[TimeControl "40/5400+30:1800+30"]

1. e4 {[%emt 0:00:00]} e5 {[%emt 0:00:00]} 2. Nf3 {[%emt 0:00:00]} Nc6 {[%emt 0:00:00]} 3. Bb5 {[%emt 0:00:59]} a6 {[%emt 0:00:00]} 4. Ba4 {[%emt 0:00:08]} d6 {[%emt 0:00:00]} 5. c3 {[%emt 0:00:16]} f5 {[%emt 0:00:04]} 6. d3 {[%emt 0:02:16]} Be7 {[%emt 0:00:19]} 7. b4 {[%emt 0:03:02]} Nf6 {[%emt 0:00:45]} 8. Qe2 {[%emt 0:00:56]} O-O {[%emt 0:06:54]} 9. O-O {[%emt 0:02:18]} Qe8 {[%emt 0:03:42]} 10. Nbd2 {[%emt 0:03:52]} Nh5 {[%emt 0:03:19]} 11. Bb3+ {[%emt 0:03:18]} Kh8 {[%emt 0:00:24]} 12. Nc4 {[%emt 0:00:37]} fxe4 {[%emt 0:01:28]} 13. dxe4 {[%emt 0:07:25]} Bg4 {[%emt 0:02:54]} 14. Ne3 {[%emt 0:13:04]} Nf4 {[%emt 0:18:51]} 15. Qd1 {[%emt 0:01:16]} Qh5 {[%emt 0:04:01]} 16. Nxg4 {[%emt 0:04:58]} Qxg4 {[%emt 0:00:56]} 17. Bxf4 {[%emt 0:00:17]} Rxf4 {[%emt 0:00:59]} 18. Nd2 {[%emt 0:02:16]} Qg6 {[%emt 0:01:11]} 19. f3 {[%emt 0:03:01]} Bg5 {[%emt 0:01:34]} 20. Qe2 {[%emt 0:03:27]} Raf8 {[%emt 0:02:13]} 21. g3 {[%emt 0:07:37]} R4f6 {[%emt 0:00:29]} 22. Nc4 {[%emt 0:03:13]} h5 {[%emt 0:02:32]} 23. Ne3 {[%emt 0:04:00]} Bxe3+ {[%emt 0:00:33]} 24. Qxe3 {[%emt 0:00:20]} Ne7 {[%emt 0:05:52]} 25. a4 {[%emt 0:03:48]} h4 {[%emt 0:00:57]} 26. g4 {[%emt 0:02:52]} h3 {[%emt 0:01:15]} 27. Rad1 {[%emt 0:05:35]} Qh7 {[%emt 0:01:05]} 28. Bc4 {[%emt 0:02:21]} Ng6 {[%emt 0:00:34]} 29. Kh1 {[%emt 0:07:02]} Nh4 {[%emt 0:02:03]} 30. Be2 {[%emt 0:03:59]} Qg6 {[%emt 0:02:50]} 31. Qd3 {[%emt 0:07:14]} Qf7 {[%emt 0:03:55]} 32. f4 {[%emt 0:02:18]} Rxf4 {[%emt 0:01:01]} 33. Qxh3 {[%emt 0:00:08]} g5 {[%emt 0:00:12]} 34. Rxf4 {[%emt 0:00:43]} Qxf4 {[%emt 0:02:04]} 35. Bd3 {[%emt 0:00:40]} Kg7 {[%emt 0:02:22]} 36. Rf1 {[%emt 0:00:53]} Qd2 {[%emt 0:04:55]} 37. Rxf8 {[%emt 0:00:27]} Kxf8 {[%emt 0:00:02]} 38. Qf1+ {[%emt 0:00:13]} Ke7 {[%emt 0:01:00]} 39. Bc4 {[%emt 0:02:05]} Qf4 {[%emt 0:00:44]} 40. Qxf4 {[%emt 0:00:32]} exf4 {[%emt 0:05:25]} 41. a5 {[%emt 0:02:54]} c6 {[%emt 0:13:01]} 42. Bg8 {[%emt 0:02:05]} Kf6 {[%emt 0:17:51]} 43. Bh7 {[%emt 0:00:50]} d5 {[%emt 0:02:15]} 44. exd5 {[%emt 0:01:23]} cxd5 {[%emt 0:00:08]} 45. Kg1 {[%emt 0:00:26]} Nf3+ {[%emt 0:01:48]} 46. Kg2 {[%emt 0:00:09]} Nd2 {[%emt 0:01:09]} 47. Bf5 {[%emt 0:02:02]} Nc4 {[%emt 0:00:15]} 48. Kf3 {[%emt 0:01:06]} Nd6 {[%emt 0:00:40]} 49. Bd7 {[%emt 0:01:43]} Ke7 {[%emt 0:00:38]} 50. Ba4 {[%emt 0:00:32]} Ne4 {[%emt 0:00:56]} 51. Bc2 {[%emt 0:04:33]} Nxc3 {[%emt 0:00:58]} 52. Bd3 {[%emt 0:01:51]} Kf6 {[%emt 0:00:51]} 53. h4 {[%emt 0:01:29]} gxh4 {[%emt 0:01:02]} 54. Kxf4 {[%emt 0:00:07]} Ne4 {[%emt 0:00:58]} 55. b5 {[%emt 0:01:57]} h3 {[%emt 0:02:03]} 56. Kf3 {[%emt 0:01:25]} h2 {[%emt 0:00:09]} 0-1

[Event "SVK Extraliga 2019-20"]
[Site "Slovakia"]
[Date "2020.01.18"]
[Round "5.1"]
[White "Cernousek, Lukas"]
[Black "Hracek, Zbynek"]
[Result "0-1"]
[ECO "E32"]
[WhiteElo "2447"]
[BlackElo "2556"]
[Annotator "ChessBase"]
[PlyCount "84"]
[EventDate "2019.10.19"]
[EventType "team-tourn"]
[EventCountry "SVK"]
[SourceTitle "playchess.com"]
[Source "ChessBase"]
[SourceQuality "1"]
[WhiteTeam "Dubnica"]
[BlackTeam "Zilina"]
[TimeControl "40/5400+30:1800+30"]

1. d4 {[%emt 0:00:00]} Nf6 {[%emt 0:00:00]} 2. c4 {[%emt 0:00:00]} e6 {[%emt 0:00:00]} 3. Nc3 {[%emt 0:00:00]} Bb4 {[%emt 0:00:48]} 4. Qc2 {[%emt 0:00:00]} O-O {[%emt 0:01:28]} 5. Nf3 {[%emt 0:00:00]} c5 {[%emt 0:02:27]} 6. dxc5 {[%emt 0:00:02]} Na6 {[%emt 0:00:02]} 7. g3 {[%emt 0:00:07]} Nxc5 {[%emt 0:00:04]} 8. Bg2 {[%emt 0:00:05]} b6 {[%emt 0:00:03]} 9. O-O {[%emt 0:00:25]} Bb7 {[%emt 0:00:03]} 10. Nb5 {[%emt 0:00:13]} Be4 {[%emt 0:00:05]} 11. Qd1 {[%emt 0:00:05]} Nb7 {[%emt 0:00:03]} 12. a3 {[%emt 0:01:34]} Be7 {[%emt 0:00:07]} 13. Bf4 {[%emt 0:02:24]} Qc8 {[%emt 0:11:23]} 14. Rc1 {[%emt 0:12:11]} a6 {[%emt 0:00:42]} 15. Nc3 {[%emt 0:00:29]} Bc6 {[%emt 0:00:31]} 16. b4 {[%emt 0:12:44]} a5 {[%emt 0:07:09]} 17. Qb3 {[%emt 0:00:34]} axb4 {[%emt 0:08:44]} 18. axb4 {[%emt 0:00:01]} Bd6 {[%emt 0:04:15]} 19. Be3 {[%emt 0:11:56]} Qd8 {[%emt 0:03:20]} 20. Rfd1 {[%emt 0:15:31]} Qe7 {[%emt 0:07:23]} 21. Rb1 {[%emt 0:00:49]} Bc7 {[%emt 0:03:20]} 22. Nd4 {[%emt 0:05:19]} Bxg2 {[%emt 0:01:16]} 23. Kxg2 {[%emt 0:00:01]} Rfc8 {[%emt 0:11:33]} 24. Ndb5 {[%emt 0:02:11]} Bd8 {[%emt 0:00:52]} 25. Bf4 {[%emt 0:06:50]} Nh5 {[%emt 0:05:37]} 26. Be5 {[%emt 0:06:44]} f6 {[%emt 0:01:01]} 27. Bd6 {[%emt 0:00:38]} Nxd6 {[%emt 0:00:33]} 28. Nxd6 {[%emt 0:00:08]} Rcb8 {[%emt 0:02:45]} 29. Ncb5 {[%emt 0:01:31]} f5 {[%emt 0:00:38]} 30. Ra1 {[%emt 0:08:43]} Nf6 {[%emt 0:01:31]} 31. Qf3 {[%emt 0:07:26]} Rxa1 {[%emt 0:00:09]} 32. Rxa1 {[%emt 0:00:01]} Qf8 {[%emt 0:01:34]} 33. Ra7 {[%emt 0:02:18]} Be7 {[%emt 0:00:51]} 34. Qd3 {[%emt 0:00:42]} Ra8 {[%emt 0:14:06]} 35. Rb7 {[%emt 0:02:23]} Rb8 {[%emt 0:00:09]} 36. Ra7 {[%emt 0:00:06]} Ra8 {[%emt 0:00:05]} 37. Rb7 {[%emt 0:00:05]} Rb8 {[%emt 0:00:07]} 38. Rc7 {[%emt 0:01:27]} Qd8 {[%emt 0:02:19]} 39. Nb7 {[%emt 0:02:21]} Qf8 {[%emt 0:01:05]} 40. N7d6 {[%emt 0:00:44]} Qd8 {[%emt 0:02:04]} 41. Nb7 {[%emt 0:15:05]} Qf8 {[%emt 0:00:11]} 42. N5d6 {[%emt 0:02:34]} h6 {[%emt 0:16:14]} 0-1

[Event "SVK Extraliga 2019-20"]
[Site "Slovakia"]
[Date "2020.01.18"]
[Round "5.1"]
[White "Sahidi, Samir"]
[Black "Petenyi, Tamas"]
[Result "1/2-1/2"]
[ECO "B06"]
[WhiteElo "2396"]
[BlackElo "2428"]
[Annotator "ChessBase"]
[PlyCount "88"]
[EventDate "2019.10.19"]
[EventType "team-tourn"]
[EventCountry "SVK"]
[SourceTitle "playchess.com"]
[Source "ChessBase"]
[SourceQuality "1"]
[WhiteTeam "Bratislava"]
[BlackTeam "Streda"]
[TimeControl "40/5400+30:1800+30"]

1. e4 {[%emt 0:00:00]} g6 {[%emt 0:00:32]} 2. Nf3 {[%emt 0:01:33]} Bg7 {[%emt 0:00:09]} 3. d4 {[%emt 0:00:51]} c6 {[%emt 0:01:27]} 4. Bd3 {[%emt 0:02:22]} d6 {[%emt 0:00:40]} 5. O-O {[%emt 0:02:35]} Nf6 {[%emt 0:00:54]} 6. e5 {[%emt 0:06:02]} dxe5 {[%emt 0:02:34]} 7. dxe5 {[%emt 0:01:12]} Nd5 {[%emt 0:00:26]} 8. h3 {[%emt 0:11:39]} O-O {[%emt 0:01:06]} 9. a3 {[%emt 0:02:10]} Nd7 {[%emt 0:06:34]} 10. Re1 {[%emt 0:02:27]} Nc5 {[%emt 0:01:37]} 11. Bf1 {[%emt 0:02:50]} b5 {[%emt 0:06:17]} 12. b3 {[%emt 0:09:23]} Rb8 {[%emt 0:04:01]} 13. Bb2 {[%emt 0:01:16]} Qc7 {[%emt 0:11:40]} 14. Nc3 {[%emt 0:02:08]} Nxc3 {[%emt 0:07:13]} 15. Bxc3 {[%emt 0:00:11]} Rd8 {[%emt 0:01:31]} 16. Qc1 {[%emt 0:00:27]} Ne6 {[%emt 0:01:31]} 17. Qe3 {[%emt 0:05:22]} c5 {[%emt 0:05:09]} 18. a4 {[%emt 0:04:39]} b4 {[%emt 0:01:57]} 19. Bb2 {[%emt 0:00:06]} Bb7 {[%emt 0:00:21]} 20. Bc4 {[%emt 0:01:58]} Bd5 {[%emt 0:05:42]} 21. Nd2 {[%emt 0:02:04]} Qc6 {[%emt 0:01:26]} 22. Bxd5 {[%emt 0:00:50]} Rxd5 {[%emt 0:00:43]} 23. Nc4 {[%emt 0:00:07]} Rbd8 {[%emt 0:00:59]} 24. Qf3 {[%emt 0:01:49]} Ng5 {[%emt 0:06:16]} 25. Qe2 {[%emt 0:04:48]} Ne6 {[%emt 0:01:19]} 26. Kh2 {[%emt 0:04:32]} R5d7 {[%emt 0:02:56]} 27. Qe4 {[%emt 0:02:51]} Qc7 {[%emt 0:01:49]} 28. f4 {[%emt 0:01:39]} Qb7 {[%emt 0:04:45]} 29. Qxb7 {[%emt 0:02:11]} Rxb7 {[%emt 0:00:01]} 30. Re4 {[%emt 0:02:07]} Rbd7 {[%emt 0:00:39]} 31. Rae1 {[%emt 0:01:10]} h5 {[%emt 0:09:56]} 32. Kg3 {[%emt 0:03:54]} Bh6 {[%emt 0:01:28]} 33. Kf3 {[%emt 0:02:37]} h4 {[%emt 0:00:43]} 34. Kg4 {[%emt 0:02:37]} Rd1 {[%emt 0:02:00]} 35. Bc1 {[%emt 0:04:01]} Rxe1 {[%emt 0:04:50]} 36. Rxe1 {[%emt 0:00:06]} Bxf4 {[%emt 0:00:49]} 37. Bxf4 {[%emt 0:00:48]} Rd4 {[%emt 0:00:04]} 38. Kxh4 {[%emt 0:00:55]} Rxf4+ {[%emt 0:01:36]} 39. Kg3 {[%emt 0:00:07]} Rf5 {[%emt 0:00:47]} 40. Re4 {[%emt 0:01:47]} Rf1 {[%emt 0:04:11]} 41. Ne3 {[%emt 0:31:19]} Rc1 {[%emt 0:02:42]} 42. Rc4 {[%emt 0:00:00]} Kf8 {[%emt 0:06:22]} 43. Kf2 {[%emt 0:00:00]} Ke8 {[%emt 0:00:33]} 44. h4 {[%emt 0:00:00]} Kd7 {[%emt 0:01:45]} 1/2-1/2